bitfinex-derivatives/quotes_ETHF0:USTF0_20250420
["timestamp","ask_amount","ask_price","bid_price","bid_amount"]
[1745142219566,1.25809,1589.9,1589.7,6.6278]
[1745142219861,1.25809,1589.9,1589.8,1.7234]
[1745142220058,1.25809,1589.9,1589.8,2.5386]
[1745142221473,1.25809,1589.9,1589.8,3.79672]
[1745142221673,1.25809,1589.9,1589.8,2.5386]
[1745142225566,1.25812,1589.8,1589.7,7.1324]
[1745142225768,1.25812,1589.8,1589.7,8.7504]
[1745142225974,1.25812,1589.8,1589.7,9.6209]
[1745142226172,1.25812,1589.8,1589.7,7.3929]
[1745142227177,1.25812,1589.8,1589.7,9.6209]
[1745142228274,4.46592,1589.8,1589.7,8.7504]
[1745142228472,5.30612,1589.8,1589.7,8.7504]
[1745142229175,5.30612,1589.8,1589.7,6.5224]
[1745142231076,5.30612,1589.8,1589.7,8.7504]
[1745142233074,2.09832,1589.8,1589.7,8.7504]
[1745142233278,5.30612,1589.8,1589.7,8.7504]
[1745142233572,6.14622,1589.8,1589.7,8.7504]
[1745142233766,6.14622,1589.8,1589.7,7.891]
[1745142234674,6.14622,1589.8,1589.7,6.273]
[1745142235775,6.14622,1589.8,1589.7,7.9238]
[1745142237276,6.14622,1589.8,1589.7,6.273]
[1745142238179,6.14622,1589.8,1589.7,4.045]
[1745142240286,7.87292,1589.8,1589.7,4.045]
[1745142240584,7.87292,1589.8,1589.7,6.273]
[1745142241585,6.19262,1589.8,1589.7,6.273]
[1745142241884,4.46592,1589.8,1589.7,8.8304]
[1745142247190,4.46592,1589.8,1589.7,10.08859]
[1745142247381,4.46592,1589.8,1589.7,8.8304]
[1745142247581,4.46592,1589.8,1589.7,10.08859]
[1745142247882,4.46592,1589.8,1589.7,8.8304]
[1745142250392,8.67044432,1589.8,1589.7,8.8304]
[1745142251192,5.46264432,1589.8,1589.7,8.8304]
[1745142251488,8.67044432,1589.8,1589.7,8.8304]
[1745142251791,5.46264432,1589.8,1589.7,8.8304]
[1745142253388,5.46264432,1589.8,1589.7,10.08859]
[1745142253589,5.46264432,1589.8,1589.7,8.8304]
[1745142254193,5.46264432,1589.8,1589.7,7.9541]
[1745142254397,7.16944432,1589.8,1589.7,7.9541]
[1745142254990,7.16944432,1589.8,1589.7,8.8371]
[1745142255686,4.20452432,1589.8,1589.7,10.09529]
[1745142255987,0.00452432,1589.8,1589.7,15.09529]
[1745142257799,10.76820624,1590.0,1589.8,1.25805]
[1745142257988,10.76820624,1590.0,1589.9,1.25804]
[1745142258187,10.76820624,1590.0,1589.9,6.05134]
[1745142258687,10.76820624,1590.0,1589.9,4.7933]
[1745142259791,10.76820624,1590.0,1589.9,6.05134]
[1745142259987,10.76818624,1590.0,1589.9,6.05134]
[1745142261302,10.76818624,1590.0,1589.9,4.7933]
[1745142261491,13.23638624,1590.0,1589.9,6.05134]
[1745142261794,13.23638624,1590.0,1589.9,3.9149]
[1745142262696,13.23638624,1590.0,1589.9,5.17294]
[1745142262997,13.23638624,1590.0,1589.9,3.9149]
[1745142263300,6.93396,1590.0,1589.9,3.9149]
[1745142263600,6.93396,1590.0,1589.9,5.17294]
[1745142264799,5.676,1590.0,1589.9,5.17294]
[1745142265200,3.2078,1590.0,1589.9,5.17294]
[1745142266503,10.13806624,1590.1,1589.9,5.17294]
[1745142266798,1.6978,1590.0,1589.9,5.17294]
[1745142266999,1.6978,1590.0,1589.9,9.21694]
[1745142267304,2.95576,1590.0,1589.9,9.21694]
[1745142267508,2.95576,1590.0,1589.9,7.9589]
[1745142268501,6.16356,1590.0,1589.9,6.272]
[1745142270806,6.16356,1590.0,1589.9,7.53004]
[1745142270997,6.16356,1590.0,1589.9,9.20774]
[1745142271197,4.9056,1590.0,1589.9,9.20774]
[1745142271394,6.30242624,1590.1,1590.0,1.25796]
[1745142271609,6.30242624,1590.1,1590.0,3.80626]
[1745142271905,8.02212624,1590.1,1590.0,3.80626]
[1745142272106,8.02212624,1590.1,1590.0,6.03426]
[1745142272310,9.28000624,1590.1,1590.0,6.03426]
[1745142272508,8.02212624,1590.1,1590.0,6.03426]
[1745142272708,8.82212624,1590.1,1590.0,6.03426]
[1745142273499,7.56030624,1590.1,1590.0,8.9057]
[1745142273703,6.30242624,1590.1,1590.0,11.03426]
[1745142274409,2.93105,1590.3,1590.1,1.25786]
[1745142274610,2.93105,1590.3,1590.2,4.042]
[1745142275108,2.93105,1590.3,1590.2,6.27]
[1745142276411,1.6733,1590.3,1590.2,7.5278]
[1745142276611,1.6733,1590.3,1590.2,9.2458]
[1745142277308,2.93102,1590.3,1590.2,9.2458]
[1745142279713,1.6733,1590.3,1590.2,9.2458]
[1745142280116,2.93102,1590.3,1590.2,9.2458]
[1745142283722,1.6733,1590.3,1590.2,9.2458]
[1745142284113,2.93102,1590.3,1590.2,9.2458]
[1745142286518,1.6733,1590.3,1590.2,9.2458]
[1745142288112,2.93102,1590.3,1590.2,9.2458]
[1745142288413,2.93102,1590.3,1590.2,6.27]
[1745142288928,2.93102,1590.3,1590.2,2.228]
[1745142289218,2.93102,1590.3,1590.2,4.042]
[1745142291528,2.93102,1590.3,1590.2,5.2998]
[1745142291821,2.93102,1590.3,1590.2,4.042]
[1745142293732,2.93102,1590.3,1590.2,5.2998]
[1745142294027,2.93102,1590.3,1590.2,4.042]
[1745142296930,6.13882,1590.3,1590.2,4.042]
[1745142298722,2.93102,1590.3,1590.2,4.042]
[1745142298928,6.13882,1590.3,1590.2,4.042]
[1745142301239,6.13882,1590.3,1590.2,6.27]
[1745142302150,1.2578,1590.2,1590.1,4.04]
[1745142302447,4.6387,1590.2,1590.1,4.04]
[1745142302637,2.9319,1590.2,1590.1,5.29788]
[1745142302834,1.2578,1590.2,1590.1,5.29788]
[1745142303447,4.804,1590.3,1590.2,1.2578]
[1745142303638,6.06172,1590.3,1590.2,4.5699]
[1745142304152,6.06172,1590.3,1590.2,6.7979]
[1745142304347,6.06172,1590.3,1590.2,5.5401]
[1745142304547,6.06172,1590.3,1590.2,4.7044]
[1745142305247,6.06172,1590.3,1590.2,3.8556]
[1745142305441,6.06172,1590.3,1590.2,2.228]
[1745142306435,1.2578,1590.2,1590.1,4.04]
[1745142306639,3.7206,1590.2,1590.1,4.04]
[1745142308446,3.7206,1590.2,1590.1,5.29788]
[1745142308646,1.25788,1590.1,1590.0,2.228]
[1745142308851,6.87938,1590.1,1590.0,6.268]
[1745142309149,6.87938,1590.1,1590.0,4.04]
[1745142311053,6.87938,1590.1,1590.0,5.7002]
[1745142311246,6.87938,1590.1,1590.0,7.9282]
[1745142315851,6.87938,1590.1,1590.0,3.8882]
[1745142316154,1.25796,1590.0,1589.9,4.04]
[1745142316349,3.72236,1590.0,1589.9,4.04]
[1745142318851,1.25796,1590.0,1589.9,4.04]
[1745142319154,1.25788,1590.1,1590.0,1.25793]
[1745142319348,7.56030624,1590.1,1590.0,3.78383]
[1745142320151,6.30242624,1590.1,1590.0,6.01183]
[1745142323158,6.30242624,1590.1,1590.0,11.01183]
[1745142324455,10.76810624,1590.1,1590.0,2.228]
[1745142324656,7.04908,1590.1,1590.0,2.228]
[1745142324856,7.90198,1590.1,1590.0,2.228]
[1745142325153,1.25786,1590.2,1590.0,4.04]
[1745142325358,1.25786,1590.2,1590.1,2.5105]
[1745142325856,3.2078,1590.3,1590.1,3.353]
[1745142326056,6.30242624,1590.4,1590.3,1.25772]
[1745142326257,6.30242624,1590.4,1590.3,5.29872]
[1745142326960,7.56006624,1590.4,1590.3,4.041]
[1745142327460,6.30242624,1590.4,1590.3,6.97932]
[1745142328355,6.30242624,1590.4,1590.3,11.97932]
[1745142329061,7.55995624,1590.6,1590.4,1.2576]
[1745142329252,7.55995624,1590.6,1590.5,0.8723]
[1745142330363,7.55995624,1590.6,1590.5,2.5596]
[1745142331159,7.55995624,1590.6,1590.5,4.7876]
[1745142332359,1.25753,1590.6,1590.5,4.7876]
[1745142333564,2.90683,1590.6,1590.5,3.9153]
[1745142336762,7.90683,1590.6,1590.5,0.53566]
[1745142337059,10.13483,1590.6,1590.1,4.039]
[1745142337368,1.2578,1590.2,1590.1,4.039]
[1745142337866,4.5854,1590.2,1590.1,4.039]
[1745142338468,4.5854,1590.2,1590.0,10.08510989]
[1745142338765,4.5854,1590.2,1590.1,4.039]
[1745142347468,4.5854,1590.2,1590.1,5.29688]
[1745142347871,4.5854,1590.2,1590.1,4.039]
[1745142348671,7.7932,1590.2,1590.1,4.039]
[1745142351572,4.5854,1590.2,1590.1,4.039]
[1745142351774,7.7932,1590.2,1590.1,4.039]
[1745142361685,7.7932,1590.2,1590.1,5.7609]
[1745142362587,7.7932,1590.2,1590.1,4.039]
[1745142367486,7.7932,1590.2,1590.1,5.7049]
[1745142374398,5.3308,1590.2,1590.1,5.7049]
[1745142374696,6.30242624,1590.3,1590.2,1.2578]
[1745142374901,6.30242624,1590.3,1590.2,3.7948]
[1745142375194,6.30242624,1590.3,1590.2,11.0228]
[1745142376000,6.30242624,1590.3,1590.2,14.2306]
[1745142376293,0.00242624,1590.3,1590.2,14.2306]
[1745142377199,0.00242624,1590.4,1590.3,1.25772]
[1745142377393,0.00242624,1590.4,1590.3,2.95992]
[1745142377593,0.00242624,1590.4,1590.3,7.95992]
[1745142379098,0.00242624,1590.4,1590.3,8.84072]
[1745142380601,0.00242624,1590.4,1590.3,3.84072]
[1745142381702,4.19926097,1590.5,1590.4,1.25762]
[1745142381892,4.19926097,1590.5,1590.4,6.95392]
[1745142382094,4.19926097,1590.5,1590.4,9.18192]
[1745142383502,5.45682097,1590.5,1590.4,7.9243]
[1745142384403,5.45682097,1590.5,1590.4,9.18194]
[1745142384606,7.96862097,1590.5,1590.4,9.18194]
[1745142386999,3.76936,1590.5,1590.4,9.18194]
[1745142389196,2.5118,1590.5,1590.4,9.18194]
[1745142392208,6.71211266,1590.5,1590.4,9.18194]
[1745142392805,2.5118,1590.5,1590.4,9.18194]
[1745142393806,3.76936,1590.5,1590.4,9.18194]
[1745142394011,2.5118,1590.5,1590.4,9.18194]
[1745142394409,3.76936,1590.5,1590.4,9.18194]
[1745142394998,2.5118,1590.5,1590.4,9.18194]
[1745142395206,3.2078,1591.2,1590.5,1.25756]
[1745142395411,4.0717,1591.2,1590.9,1.25723]
[1745142395614,5.32876,1591.2,1591.0,6.96247]
[1745142395909,5.32876,1591.2,1591.1,5.7053]
[1745142397008,22.12836685,1591.2,1591.1,5.7053]
[1745142398312,23.72286685,1591.2,1591.1,5.7053]
[1745142398614,27.46580685,1591.2,1590.6,4.8283]
[1745142398908,1.25728,1590.9,1590.7,5.7739]
[1745142399106,2.10942,1590.8,1590.7,1.7369]
[1745142399312,1.2574,1590.7,1590.5,3.48554]
[1745142399511,1.5945,1590.7,1590.6,7.03138]
[1745142399810,1.5945,1590.7,1590.6,5.7739]
[1745142400204,3.6522,1590.7,1590.6,5.7739]
[1745142400507,2.3948,1590.7,1590.6,5.7739]
[1745142401014,2.3948,1590.7,1590.6,7.03138]
[1745142401516,2.3948,1590.7,1590.6,5.7739]
[1745142401815,3.6522,1590.7,1590.6,5.7739]
[1745142403101,2.3948,1590.7,1590.6,5.7739]
[1745142403310,2.3948,1590.7,1590.6,7.03138]
[1745142403917,6.58792627,1590.7,1590.6,7.03138]
[1745142405215,4.19312627,1590.7,1590.6,7.03138]
[1745142407317,4.19312627,1590.8,1590.7,1.2574]
[1745142407517,4.19312627,1590.8,1590.7,3.724]
[1745142408225,5.45044627,1590.8,1590.7,4.5598]
[1745142408619,4.19312627,1590.8,1590.7,4.5598]
[1745142410218,5.45044627,1590.8,1590.7,3.3024]
[1745142411014,5.45044627,1590.8,1590.3,4.037]
[1745142411015,3.14352,1590.7,1590.3,4.037]
[1745142411221,4.46544,1590.4,1590.3,4.037]
[1745142412411,6.15244,1590.4,1590.3,4.037]
[1745142414619,10.34556627,1590.4,1590.3,4.037]
[1745142414821,4.19312627,1590.4,1590.3,10.29472]
[1745142415016,4.19312627,1590.4,1590.3,11.10562]
[1745142415320,4.19312627,1590.4,1590.3,12.70702]
[1745142418116,4.19312627,1590.6,1590.5,1.25756]
[1745142418517,4.19312627,1590.6,1590.5,2.85706]
[1745142419119,4.19312627,1590.6,1590.5,5.08506]
[1745142424031,2.4797,1590.7,1590.6,1.25748]
[1745142424226,2.4797,1590.7,1590.6,7.00038]
[1745142425127,3.7371,1590.7,1590.6,5.7429]
[1745142427032,3.7371,1590.7,1590.6,4.037]
[1745142428021,3.7371,1590.7,1590.5,3.9344]
[1745142428226,6.12248,1590.6,1590.5,2.228]
[1745142428425,6.12248,1590.6,1590.5,6.284]
[1745142429329,4.865,1590.6,1590.5,7.54156]
[1745142429535,6.12248,1590.6,1590.5,7.9341]
[1745142430933,6.12248,1590.6,1590.5,6.284]
[1745142431325,4.865,1590.6,1590.5,7.54156]
[1745142431532,10.52483644,1590.7,1590.6,1.25748]
[1745142431832,12.23713644,1590.7,1590.6,2.91698]
[1745142432738,12.23713644,1590.7,1590.6,1.6595]
[1745142433340,1.25748,1590.6,1590.5,7.54153]
[1745142433541,2.96978,1590.6,1590.5,7.9435]
[1745142434437,6.17758,1590.6,1590.5,6.284]
[1745142437239,12.47820877,1590.6,1590.5,6.284]
[1745142439033,11.22072877,1590.6,1590.5,6.284]
[1745142439342,11.22072877,1590.6,1590.5,7.9149]
[1745142439839,12.47820877,1590.6,1590.5,6.284]
[1745142440341,1.25756,1590.5,1590.4,99.914]
[1745142440641,3.74706,1590.5,1590.4,99.914]
[1745142441036,1.25766,1590.4,1590.1,1.25785]
[1745142441344,3.2078,1590.3,1590.2,4.056]
[1745142441840,4.8966,1590.3,1590.2,4.056]
[1745142443550,20.39615258,1590.3,1590.2,4.056]
[1745142443745,21.65387258,1590.3,1590.2,4.056]
[1745142444146,20.39615258,1590.3,1590.2,4.056]
[1745142444347,15.39615258,1590.3,1590.2,4.056]
[1745142446042,12.45405155,1590.3,1590.2,4.056]
[1745142446241,17.45405155,1590.3,1590.2,4.056]
[1745142447145,19.68205155,1590.3,1590.2,4.056]
[1745142447345,19.68205155,1590.3,1590.1,1.25788]
[1745142447546,2.5408,1590.2,1590.1,1.25788]
[1745142448254,9.50753155,1590.3,1590.2,1.2578]
[1745142448552,6.29973155,1590.3,1590.2,1.2578]
[1745142449158,6.29973155,1590.3,1590.2,5.2438]
[1745142452663,6.29973155,1590.3,1590.2,9.3008]
[1745142452960,4.19845933,1590.4,1590.3,1.25772]
[1745142453162,4.19845933,1590.4,1590.3,2.96232]
[1745142453359,4.19845933,1590.4,1590.3,7.01932]
[1745142455561,5.81395933,1590.4,1590.3,7.01932]
[1745142458864,5.81395933,1590.4,1590.3,5.31472]
[1745142459363,7.07159933,1590.4,1590.3,4.057]
[1745142459766,7.07159933,1590.4,1590.3,5.31472]
[1745142460368,7.07159933,1590.4,1590.3,4.057]
[1745142460870,7.07159933,1590.4,1590.3,5.31472]
[1745142461864,1.25772,1590.3,1590.2,1.25778]
[1745142462064,7.02262,1590.3,1590.2,4.061]
[1745142462260,12.02262,1590.3,1590.2,4.061]
[1745142463570,7.02262,1590.3,1590.2,4.061]
[1745142467075,11.22107933,1590.3,1590.2,4.061]
[1745142471079,13.44907933,1590.3,1590.2,4.061]
[1745142471871,1.25796,1590.0,1589.9,0.8131]
[1745142472177,1.25796,1590.0,1589.9,4.061]
[1745142472677,3.69556,1590.0,1589.9,4.061]
[1745142472873,3.69556,1590.0,1589.9,5.7122]
[1745142474377,2.09866,1590.0,1589.9,5.7122]
[1745142479980,5.30646,1590.0,1589.9,5.7122]
[1745142480372,7.02676,1590.0,1589.9,5.7122]
[1745142482383,5.30646,1590.0,1589.9,5.7122]
[1745142482786,4.46576,1590.0,1589.9,5.7122]
[1745142483581,1.25796,1590.0,1589.9,5.7122]
[1745142483787,4.46576,1590.0,1589.9,5.7122]
[1745142484086,4.46576,1590.0,1589.9,6.97024]
[1745142484386,4.46576,1590.0,1589.9,5.7122]
[1745142486386,4.46576,1590.0,1589.9,6.97024]
[1745142486891,4.46576,1590.0,1589.9,5.7122]
[1745142489591,3.2078,1590.0,1589.9,6.97024]
[1745142489990,4.19845933,1590.1,1590.0,1.25796]
[1745142490186,4.19845933,1590.1,1590.0,3.79216]
[1745142493896,5.45628933,1590.2,1590.1,1.25788]
[1745142494194,5.45628933,1590.2,1590.1,3.02108]
[1745142494697,4.19845933,1590.2,1590.1,3.02108]
[1745142495196,4.19845933,1590.2,1590.1,3.85358]
[1745142497398,9.50753155,1590.3,1590.1,3.85358]
[1745142497399,6.29973155,1590.3,1590.2,1.2578]
[1745142497700,0.01362088,1590.3,1590.2,6.9575]
[1745142497900,0.01362088,1590.3,1590.2,11.9575]
[1745142498098,0.01362088,1590.3,1590.2,14.1855]
[1745142498791,0.01362088,1590.4,1590.3,1.25772]
[1745142498991,0.01362088,1590.4,1590.3,7.05112]
[1745142499191,0.01362088,1590.4,1590.3,12.05112]
[1745142503305,3.2078,1590.7,1590.6,1.25748]
[1745142503605,3.2078,1590.7,1590.6,5.29648]
[1745142504505,3.2078,1590.7,1590.6,6.14258]
[1745142504804,3.2078,1590.7,1590.6,7.76528]
[1745142505405,3.2078,1590.7,1590.6,1.25748]
[1745142505697,1.25762,1590.5,1590.4,4.039]
[1745142505901,4.46542,1590.5,1590.4,4.039]
[1745142506304,6.22742,1590.5,1590.4,4.039]
[1745142511211,6.22742,1590.5,1590.4,5.29664]
[1745142511411,3.01962,1590.5,1590.4,5.29664]
[1745142515013,6.22742,1590.5,1590.4,4.039]
[1745142520414,6.22742,1590.5,1590.4,5.6656]
[1745142521112,3.01962,1590.5,1590.4,5.6656]
[1745142522819,1.762,1590.5,1590.4,6.92324]
[1745142523016,4.9178,1590.6,1590.5,1.25756]
[1745142523218,4.9178,1590.6,1590.5,3.02376]
[1745142523517,4.9178,1590.6,1590.5,3.85076]
[1745142525218,4.9178,1590.6,1590.5,6.07876]
[1745142525916,1.71,1590.6,1590.5,6.07876]
[1745142527020,3.2078,1590.7,1590.6,1.25748]
[1745142527316,4.4652,1590.7,1590.5,3.48551]
[1745142527520,1.6926,1590.6,1590.5,5.12171]
[1745142528223,1.6926,1590.6,1590.5,2.89371]
[1745142530223,1.6926,1590.6,1590.5,6.93371]
[1745142530420,2.95013,1590.6,1590.4,1.25761]
[1745142530729,2.95013,1590.6,1590.5,5.29756]
[1745142531023,2.95013,1590.6,1590.5,4.04]
[1745142531525,2.95013,1590.6,1590.5,6.90656]
[1745142532122,1.6926,1590.6,1590.5,6.90656]
[1745142533122,4.46525,1590.7,1590.5,9.13456]
[1745142533330,6.09355,1590.7,1590.6,1.609]
[1745142545031,4.46525,1590.7,1590.6,1.609]
[1745142545332,4.46525,1590.7,1590.6,3.2229]
[1745142546327,6.07535,1590.7,1590.6,3.2229]
[1745142546833,6.07535,1590.7,1590.6,2.4086]
[1745142548035,6.07535,1590.7,1590.6,1.609]
[1745142551322,1.25748,1590.6,1590.5,4.04]
[1745142551528,3.73948,1590.6,1590.5,4.04]
[1745142551822,1.25756,1590.5,1590.4,1.695]
[1745142552034,3.79416,1590.5,1590.4,4.038]
[1745142552336,1.2578,1590.2,1590.1,107.47696676]
[1745142552631,1.2578,1590.2,1590.1,111.51496676]
[1745142553730,1.2578,1590.2,1590.1,113.18006676]
[1745142554330,2.0578,1590.2,1590.1,113.18006676]
[1745142555134,2.9122,1590.2,1590.1,113.18006676]
[1745142558035,2.9122,1590.2,1590.1,104.7809]
[1745142565240,2.9122,1590.2,1590.1,106.03878]
[1745142569739,2.9122,1590.2,1590.1,104.7809]
[1745142570740,2.9122,1590.2,1590.1,106.03878]
[1745142571045,2.9122,1590.2,1590.1,104.7809]
[1745142572041,2.9122,1590.2,1590.1,106.03878]
[1745142572643,2.9122,1590.2,1590.1,104.7809]
[1745142574143,2.9122,1590.2,1590.1,106.03878]
[1745142578047,2.9122,1590.2,1590.1,10.16878]
[1745142578547,2.9122,1590.2,1590.1,8.9109]
[1745142579748,2.9122,1590.2,1590.1,1.6651]
[1745142579948,1.6544,1590.2,1589.8,8.39916676]
[1745142580141,1.6544,1590.2,1589.9,5.7949]
[1745142580142,4.46581,1590.0,1589.9,5.7949]
[1745142580545,5.29361,1590.0,1589.9,5.7949]
[1745142582644,5.29361,1590.0,1589.9,1.7559]
[1745142582938,5.29361,1590.0,1589.9,5.7949]
[1745142584352,5.29361,1590.0,1589.9,4.039]
[1745142587957,1.25804,1589.9,1589.8,5.6665]
[1745142588151,3.76784,1589.9,1589.8,5.6665]
[1745142588958,2.12424,1589.9,1589.8,5.6665]
[1745142589259,2.12424,1589.9,1589.8,6.5483]
[1745142595361,2.12424,1589.9,1589.8,5.6665]
[1745142595565,3.71814,1589.9,1589.8,5.6665]
[1745142598259,6.92594,1589.9,1589.8,5.6665]
[1745142606664,4.46584,1589.9,1589.8,5.6665]
[1745142614371,1.25804,1589.9,1589.8,5.6665]
[1745142614574,4.46584,1589.9,1589.8,5.6665]
[1745142620068,1.25804,1589.9,1589.8,5.6665]
[1745142620569,4.46584,1589.9,1589.8,5.6665]
[1745142624077,5.33974,1589.9,1589.8,5.6665]
[1745142628879,9.52916486,1589.9,1589.8,5.6665]
[1745142629078,8.65526486,1589.9,1589.8,5.6665]
[1745142629279,7.39722486,1589.9,1589.8,10.6665]
[1745142629480,7.39722486,1589.9,1589.8,11.92462]
[1745142629878,8.65526486,1589.9,1589.8,11.92462]
[1745142630175,7.39722486,1589.9,1589.8,11.92462]
[1745142630378,8.65526486,1589.9,1589.8,11.92462]
[1745142631083,8.65526486,1589.9,1589.8,6.92462]
[1745142631270,8.65526486,1589.9,1589.8,11.92462]
[1745142632382,4.46584,1589.9,1589.8,11.92462]
[1745142635680,4.46584,1589.9,1589.8,10.6665]
[1745142635881,4.46584,1589.9,1589.8,11.92462]
[1745142637585,3.2078,1589.9,1589.8,6.92462]
[1745142638185,4.46584,1589.9,1589.8,5.6665]
[1745142638382,4.46584,1589.9,1589.8,6.92462]
[1745142639389,3.2078,1589.9,1589.8,6.92462]
[1745142639582,4.46584,1589.9,1589.8,6.92462]
[1745142639987,3.2078,1589.9,1589.8,6.92462]
[1745142640189,4.46584,1589.9,1589.8,6.92462]
[1745142641587,3.2078,1589.9,1589.8,6.92462]
[1745142641792,1.25804,1589.9,1589.8,6.92462]
[1745142644600,1.25804,1589.9,1589.8,5.6665]
[1745142646100,1.25804,1589.9,1589.8,6.92462]
[1745142646495,1.25802,1590.0,1589.8,6.92462]
[1745142646701,1.25804,1589.9,1589.8,4.04]
[1745142648201,1.25804,1589.9,1589.8,5.29812]
[1745142652105,2.06281,1590.0,1589.8,5.29812]
[1745142652406,1.25804,1589.9,1589.8,5.29812]
[1745142656711,2.06282,1590.0,1589.8,5.29812]
[1745142656909,3.82752,1590.0,1589.8,5.29812]
[1745142657309,1.25804,1589.9,1589.8,5.29812]
[1745142657608,2.5695,1590.0,1589.8,5.29812]
[1745142657811,3.82753,1590.0,1589.8,5.29812]
[1745142664314,2.5695,1590.0,1589.7,98.9552]
[1745142664504,1.25812,1589.8,1589.7,98.129]
[1745142664706,1.25812,1589.8,1589.7,102.167]
[1745142664906,4.67052,1589.8,1589.7,102.167]
[1745142665108,4.67052,1589.8,1589.7,95.901]
[1745142665316,9.67052,1589.8,1589.7,99.939]
[1745142666110,8.4124,1589.8,1589.6,8.3901555]
[1745142666304,6.09539,1589.7,1589.6,12.4281555]
[1745142666607,6.60250966,1589.7,1589.6,12.4281555]
[1745142666812,11.60250966,1589.7,1589.6,12.4281555]
[1745142667315,11.60250966,1589.7,1589.6,8.3901555]
[1745142668417,11.09539,1589.7,1589.6,8.3901555]
[1745142670715,6.09539,1589.7,1589.6,8.3901555]
[1745142675831,4.46599,1589.7,1589.6,10.1594555]
[1745142676024,2.91397,1589.8,1589.6,11.4176855]
[1745142676224,1.6558,1589.8,1589.7,7.06549]
[1745142676825,2.11542,1589.8,1589.7,7.06549]
[1745142677228,0.8573,1589.8,1589.7,9.29349]
[1745142677530,4.46589,1589.9,1589.7,9.29349]
[1745142677723,4.46589,1589.9,1589.8,1.6894]
[1745142678934,1.25812,1589.8,1589.7,6.266]
[1745142679122,4.9619,1589.9,1589.8,1.25812]
[1745142679322,4.46584,1589.9,1589.8,2.5191]
[1745142679531,4.46584,1589.9,1589.8,3.77722]
[1745142679929,3.2078,1589.9,1589.8,3.77722]
[1745142680138,1.25812,1589.8,1589.7,6.266]
[1745142680326,3.86262,1589.8,1589.7,6.266]
[1745142680926,3.86262,1589.8,1589.7,7.9586]
[1745142681229,2.10852,1589.8,1589.7,8.805]
[1745142684139,2.10852,1589.8,1589.7,6.577]
[1745142685228,2.10852,1589.8,1589.7,8.805]
[1745142686037,4.46586,1589.9,1589.7,10.06315]
[1745142686338,4.46586,1589.9,1589.8,2.4267]
[1745142687539,1.25806,1589.9,1589.8,2.4267]
[1745142687739,4.46586,1589.9,1589.8,2.4267]
[1745142687942,4.46586,1589.9,1589.8,3.68482]
[1745142688237,4.46586,1589.9,1589.8,2.4267]
[1745142689040,4.46586,1589.9,1589.8,3.68482]
[1745142689241,3.2078,1589.9,1589.8,3.68482]
[1745142690138,4.46584,1589.9,1589.8,3.68482]
[1745142690740,4.46584,1589.9,1589.8,2.4267]
[1745142690943,4.46584,1589.9,1589.8,1.596]
[1745142692439,6.15534,1589.9,1589.8,1.596]
[1745142695735,1.25812,1589.8,1589.7,4.038]
[1745142695940,2.95722,1589.8,1589.7,4.038]
[1745142696140,2.95722,1589.8,1589.7,5.805]
[1745142699549,2.95722,1589.8,1589.7,1.767]
[1745142699749,6.16502,1589.8,1589.7,5.805]
[1745142700547,2.95722,1589.8,1589.7,5.805]
[1745142701047,6.16502,1589.8,1589.7,5.805]
[1745142701443,3.2078,1589.8,1589.7,7.06319]
[1745142701653,7.39101808,1590.0,1589.9,1.25804]
[1745142701850,4.18321808,1590.0,1589.9,1.25804]
[1745142702238,4.18321808,1590.0,1589.9,5.10834]
[1745142704956,1.25788,1590.1,1589.9,5.10834]
[1745142705250,1.25788,1590.1,1590.0,5.6603]
[1745142707352,1.25788,1590.1,1590.0,6.91826]
[1745142708651,3.2078,1590.2,1590.1,1.25788]
[1745142708840,1.25774,1590.3,1590.2,1.25779]
[1745142709043,1.25774,1590.3,1590.2,5.29479]
[1745142709242,1.25774,1590.3,1590.2,4.037]
[1745142710148,1.25774,1590.3,1589.9,3.2078]
[1745142710149,1.25788,1590.1,1590.0,4.037]
[1745142710353,4.46568,1590.1,1590.0,4.037]
[1745142711455,6.20928,1590.1,1590.0,4.037]
[1745142713050,8.43728,1590.1,1590.0,4.037]
[1745142715153,6.20928,1590.1,1590.0,4.037]
[1745142715855,10.39249808,1590.1,1590.0,4.037]
[1745142716248,12.15899808,1590.1,1590.0,4.037]
[1745142718665,7.97578,1590.1,1590.0,4.037]
[1745142719359,6.20928,1590.1,1590.0,4.037]
[1745142719754,7.96138,1590.1,1590.0,4.037]
[1745142726262,6.20928,1590.1,1590.0,4.037]
[1745142726559,5.33388,1590.1,1590.0,4.8498]
[1745142726763,4.46568,1590.1,1590.0,5.6568]
[1745142727161,12.51960494,1590.2,1590.0,8.66126]
[1745142727363,11.71860494,1590.2,1590.1,1.7465]
[1745142728363,10.46074494,1590.2,1590.1,3.00438]
[1745142729667,4.46554,1590.3,1590.1,1.7465]
[1745142729868,3.2078,1590.3,1590.2,3.0209]
[1745142730269,3.2078,1590.3,1590.2,5.2489]
[1745142731674,10.46074494,1590.4,1590.3,1.25772]
[1745142731864,10.46074494,1590.4,1590.3,8.68882]
[1745142732370,10.46074494,1590.4,1590.3,13.68882]
[1745142734582,4.18321808,1590.7,1590.6,1.25748]
[1745142734775,4.18321808,1590.7,1590.6,5.29348]
[1745142735266,4.18321808,1590.7,1590.6,8.62538]
[1745142736573,4.18321808,1590.7,1590.6,13.62538]
[1745142738769,6.17774,1591.1,1590.6,12.3679]
[1745142738966,6.17774,1591.1,1590.9,1.2572]